{"text_format":"1","workbook":"xlsx","n_sheets":2,"sheets":["申込書","カリキュラムコード一覧"],"not_rendered":{"charts":0,"images":0,"macros":1,"external_links":0,"defined_names":1,"comments":0,"pivot_tables":0},"unopened":[],"bounds":{"document_bytes":16777216,"sheet_cells":100000,"rows_first":2000,"rows_last":500,"rows_between":2000,"halvings":0,"cell_chars":16384,"cell_head_chars":4096},"cells_cut":0,"cells_raw":0,"read":"whole","date_system":"1900"}

{"sheet":"申込書","index":0,"n_rows":298,"n_cols":11,"rows_kept":298,"cut":false,"hidden":false,"merged":[[264,1,264,8],[275,1,275,9],[277,1,277,7],[278,1,278,7],[289,1,289,8],[150,1,150,9],[152,1,152,7],[153,1,153,7],[164,1,164,8],[175,1,175,9],[177,1,177,7],[178,1,178,7],[189,1,189,8],[200,1,200,9],[276,1,276,7],[272,1,272,9],[247,1,247,9],[259,1,259,7],[270,1,270,8],[261,1,261,7],[262,1,262,7],[227,1,227,7],[228,1,228,7],[239,1,239,8],[225,1,225,9],[151,1,151,7],[184,1,184,7],[185,1,185,7],[156,1,156,7],[212,1,212,7],[181,1,181,7],[182,1,182,7],[166,1,166,8],[168,1,168,8],[170,1,170,8],[186,1,186,7],[187,1,187,7],[201,1,201,7],[197,1,197,9],[161,1,161,7],[162,1,162,7],[193,1,193,8],[154,1,154,7],[176,1,176,7],[172,1,172,9],[157,1,157,7],[160,1,160,7],[159,1,159,7],[129,1,129,7],[133,1,133,7],[97,1,97,9],[134,1,134,7],[100,1,100,9],[222,1,222,9],[216,1,216,8],[202,1,202,7],[203,1,203,7],[214,1,214,8],[102,1,102,7],[103,1,103,7],[114,1,114,8],[125,1,125,9],[127,1,127,7],[128,1,128,7],[139,1,139,8],[147,1,147,9],[122,1,122,9],[72,1,72,9],[76,1,76,7],[101,1,101,7],[126,1,126,7],[112,1,112,7],[35,1,35,7],[31,1,31,7],[82,1,82,7],[89,1,89,8],[105,1,105,7],[106,1,106,7],[107,1,107,7],[108,1,108,7],[109,1,109,7],[281,1,281,7],[260,1,260,7],[3,1,3,9],[0,0,0,9],[135,1,135,7],[136,1,136,7],[137,1,137,7],[130,1,130,7],[141,1,141,8],[131,1,131,7],[132,1,132,7],[15,1,15,7],[95,1,95,8],[78,1,78,7],[77,1,77,7],[79,1,79,7],[80,1,80,7],[118,1,118,8],[120,1,120,8],[110,1,110,7],[183,1,183,7],[4,1,4,7],[18,1,18,7],[27,1,27,7],[229,1,229,7],[54,1,54,8],[60,1,60,9],[61,1,61,9],[62,1,62,9],[91,1,91,8],[83,1,83,7],[84,1,84,7],[85,1,85,7],[86,1,86,7],[87,1,87,7],[67,1,67,8],[75,1,75,9],[155,1,155,7],[158,1,158,7],[179,1,179,7],[93,1,93,8],[111,1,111,7],[81,1,81,7],[226,1,226,7],[209,1,209,7],[191,1,191,8],[143,1,143,8],[145,1,145,8],[230,1,230,7],[231,1,231,7],[235,1,235,7],[285,1,285,7],[286,1,286,7],[287,1,287,7],[291,1,291,8],[293,1,293,8],[295,1,295,8],[284,1,284,7],[255,1,255,7],[256,1,256,7],[257,1,257,7],[258,1,258,7],[236,1,236,7],[237,1,237,7],[251,1,251,7],[250,1,250,9],[252,1,252,7],[253,1,253,7],[282,1,282,7],[283,1,283,7],[279,1,279,7],[280,1,280,7],[7,1,7,8],[10,1,10,8],[13,1,13,8],[21,1,21,8],[22,1,22,8],[25,1,25,8],[16,1,16,8],[20,1,20,8],[40,4,40,8],[24,4,24,8],[36,1,36,8],[38,1,38,8],[29,1,29,7],[33,1,33,7],[70,1,70,7],[9,1,9,7],[12,1,12,7],[49,1,49,7],[58,1,58,5],[58,7,58,8],[57,3,57,5],[59,7,59,8],[68,1,68,4],[68,5,68,8],[59,3,59,5],[63,1,63,9],[64,1,64,9],[65,1,65,9],[66,1,66,9],[56,1,56,9],[41,1,41,8],[45,1,45,8],[47,1,47,8],[51,1,51,8],[53,1,53,8],[57,1,57,2],[43,1,43,7],[57,0,59,0],[71,1,71,9],[266,1,266,8],[268,1,268,8],[241,1,241,8],[243,1,243,8],[245,1,245,8],[218,1,218,8],[220,1,220,8],[104,1,104,7],[116,1,116,8],[211,1,211,7],[210,1,210,7],[204,1,204,7],[205,1,205,7],[206,1,206,7],[207,1,207,7],[208,1,208,7],[180,1,180,7],[195,1,195,8],[232,1,232,7],[233,1,233,7],[234,1,234,7],[254,1,254,7]]}
["茨城県医師会 日本医師会生涯教育制度講習会 認定申請書"]
[null,null,null,null,null,null,null,"申請日",null,"⇐選択してください。"]
["Ver.20.0527",null,null,null,null,null,null,"変更日",null,"⇐選択してください。"]
["＊印は必須項目です。 ","申請前（※メール添付前）に記載・入力内容に間違いがないか確認してください。\n審査業務の円滑な運営にご協力をお願いいたします。"]
["開催日時*",null,null,null,null,null,null,null,null,"⇐選択してください。"]
[null,"hh","：","mm","～","hh","：","mm",null,"⇐選択してください。"]
[null,"例: 19　  　:　　  00　　　 　　 ～　　　 　 　21 　 　:　  　00 "]
["講習会名*",null,null,null,null,null,null,null,null,"⇐入力してください。"]
[null,"例：感染症対策研修会"]
["主催*","主催者分類を選択してください。",null,null,null,null,null,null,null,"⇐選択してください。"]
[null,null,null,null,null,null,null,null,null,"⇐医師会以外は入力してください"]
[null,"例:〇〇製薬（株式会社、（株）等の入力は不要）、〇〇医院、茨城県〇〇科医会、〇〇研究会"]
["製薬会社以外の共催有無*","共催者の有無を選択してください。",null,null,null,null,null,null,null,"⇐選択してください。"]
[null,null,null,null,null,null,null,null,null,"⇐その他を選択した場合は入力してください。"]
[]
["製薬会社共催有無*","製薬会社共催の有無を選択してください。",null,null,null,null,null,null,null,"⇐選択してください。"]
[null,null,null,null,null,null,null,null,null,"⇐有を選択した場合は入力してください。"]
[null,"例:〇〇製薬（株式会社、（株）等の入力は不要）"]
["講習会等の形式別*","講習会等の形式を選択してください。",null,null,null,null,null,null,null,"⇐選択してください。\n　その他を選択した場合は入力してください。"]
["開催場所"]
["　都道府県*","茨城県",null,null,null,null,null,null,null,"⇐※入力しないでください。"]
["　　　　会場名*",null,null,null,null,null,null,null,null,"⇐入力してください。"]
["　　　　階・室名*",null,null,null,null,null,null,null,null,"⇐入力してください。"]
[null,"例：4階101号室(※英数字は半角で入力してください）"]
["　　　　郵便番号*",null,"-",null,"例:310-0852(※半角で入力してください）",null,null,null,null,"⇐入力してください。"]
["　　　　住所*",null,null,null,null,null,null,null,null,"⇐入力してください。"]
["  ","例：水戸市笠原町489（※茨城県の入力は不要）"]
["　　　　電話番号*","000-000-0000     ",null,null,null,null,null,null,null,"⇐入力してください。"]
[null,"例:029-241-8446(※半角で入力してください）"]
["対象者*","対象者を選択してください。",null,null,null,null,null,null,null,"⇐選択してください。\n　その他を選択した場合は入力してください。"]
[null,null,null,null,null,null,null,null,"例:医療従事者"]
["参加費・受講料*","参加費・受講料を選択してください。",null,null,null,null,null,null,null,"⇐選択してください。\n　有料を選択した場合は入力してください。"]
[null,"例:県医師会員：10000円、非会員：12000円（※医師の参加費のみご入力ください。※金額にカンマは入力しないでください。）"]
["事前申込み*","事前申込要・不要を選択してください。",null,null,null,null,null,null,null,"⇐選択してください。"]
["連絡・問合せ先"]
["（申請・研修会に関する問合せ先)","申請者の立場を選択してください。",null,null,null,null,null,null,null,"⇐選択してください。"]
["　　　　　所属先名*",null,null,null,null,null,null,null,null,"⇐入力してください。"]
[null,"例:〇〇医院、茨城県〇〇科医会、〇〇研究会、〇〇製薬（株式会社、（株）等の入力は不要です）"]
["　　　　　担当者名*",null,null,null,null,null,null,null,null,"⇐入力してください。"]
["  ","〇〇課　生涯太郎"]
["　　　　　郵便番号*",null,"-",null,"例:310-0852(※半角で入力してください）",null,null,null,null,"⇐入力してください。"]
["　　　　　住所*",null,null,null,null,null,null,null,null,"⇐入力してください。"]
[null,"例：水戸市笠原町489（※茨城県の入力は不要）"]
["　　　　　電話番号*/FAX番号*","000-000-0000     ",null,null,null,null,null,null,"000-000-0000     ","⇐入力してください。"]
[null,"例:029-241-8446(※半角で入力してください）"]
["　　メールアドレス",null,null,null,null,null,null,null,null,"⇐入力してください。"]
[null,"例:gakujutu@ibaraki.med.or.jp"]
["　　ホームページ",null,null,null,null,null,null,null,null,"⇐必要があれば入力してください。"]
["  ","例:http://www.ibaraki.med.or.jp/"]
["COI（利益相反）開示有無*","COI開示有無を選択してください。",null,null,null,null,null,null,null,"⇐選択してください。"]
[]
["備考",{"$f":"IF(B11=\"\",\"\",B11)","v":""},null,null,null,null,null,null,null,"⇐※入力しないでください。"]
[]
["受付管理*","受付管理をプルダウンして下記より選択してください。",null,null,null,null,null,null,null,"⇐選択してください。"]
[null,null,null,null,null,null,null,null,null,"⇐開始＋終了受付  （　　分間）を\n選択した場合は時間を入力してください。"]
[null,"例:10分間"]
["製薬会社入力欄　　","※製薬会社が主催、申請者となっている場合は必ず下記の欄をご確認いただきご入力ください。"]
["開催地郡市医師会への確認\n※郡市医師会によって生涯教育講座の申請方法が異なります。必ず開催地の郡市医師会へ事前に確認してください。","確認日",null,null,null,null,null,null,null,"⇐選択してください。"]
[null,"開催地医師会を選択してください。",null,null,null,null,null,"担当者所属を選択してください。",null,"⇐選択してください。"]
[null,"氏名",null,"【　　　　　　　　　　　　　　　】",null,null,null,"に確認しました。",null,"⇐入力してください。"]
["申請認定に関する確認事項　","※製品PRにつながるような開催案内ですと認可いたしかねます。必ず申請前にご確認の上、本申請書と開催案内を　gakujutu@ibaraki.med.or.jp　へ同時に申請してください。"]
[null,"①研修会のタイトル・開催案内文に製品名が入っていない、ロゴマーク等の記載、製品名をイメージさせる配色・デザインがなされていないことをご確認ください。"]
[null,"②日本医師会生涯教育講座　取得単位数と取得カリキュラムコード申請中と記載してください。"]
[null,"③生涯教育講座認定申請は茨城県医師会の共催、後援等の申請とは別のものです。茨城県医師会が共催、後援と記載しないでください。"]
[null,"④講習会終了後には本会所定の様式にて期限内に速やかに出席者名簿データをgakujutu@ibaraki.med.or.jpへ提出してください。提出の際には出席者名簿の必須項目を必ず入力したうえでご提出ください。申請前に必ず出席者名簿データを確認し、当日の受付名簿に反映させる等の準備を行ってください。"]
[null,"⑤その他、詳細につきましては認定に関するルールをご確認ください。"]
[null,"上記の条件を守ることができない場合は申請はご遠慮ください。\nまた講習会終了後、期限内に出席者名簿の提出がない、または本会の事業方針にそぐわない等の行為が発覚した際には次回以降の申請を所属先単位でご遠慮させていただくことがございますのでご承知おきください。"]
[null,"上記を確認し、承諾したうえで申請書及び開催案内を添付致します。\n講習会終了後には貴会所定様式の記載要件を整えたうえで速やかに期限内に出席者報告を行います。　　　　　　　　　　　　　　　　　　　　　"]
[null,"申請者：所属先/氏名　　　　　　　　　　　　　　　　　　",null,null,null,"【　　　　　　　　　　　　　　　　　　　　】",null,null,null,"⇐入力してください。"]
[]
["申請演題数*","申請演題数を選択してください。",null,null,null,null,null,null,null,"⇐選択してください。"]
[null,"上記の演題数に併せて下記の演題申請枠にご記入または選択してください。"]
["演題①"]
[null,null,null,{"$f":"B75&C75&D75","v":"hh：mm"},null,null,null,{"$f":"F75&G75&H75","v":"hh：mm"},null,{"$f":"IF(ISERROR(H74-D74), \"\", ROUNDUP(H74-D74,5))","v":""}]
["演題開催時間*","hh","：","mm","～","hh","：","mm",null,"⇐選択してください。"]
["カリキュラムコード（CC）*/単位*","基本的には、１時間１単位１カリキュラムコード（CC）です。\n（ただし、講習会等の構成の自由度を保つために、最小単位は30分0.5単位、１カリキュラムコードといたします。）"]
[null,{"$f":"IF(J74=\"\",\"\",IF(J74<30/1440,0,IF(J74<60/1440,カリキュラムコード一覧!$D$2,IF(申込書!J74<90/1440,カリキュラムコード一覧!$D$3,IF(申込書!J74<120/1440,カリキュラムコード一覧!$D$4,IF(J74<150/1440,カリキュラムコード一覧!$D$5,IF(J74<180/1440,カリキュラムコード一覧!$D$6,IF(J74<210/1440,カリキュラムコード一覧!$D$7,IF(J74<240/1440,カリキュラムコード一覧!$D$8,IF(J74<270/1440,カリキュラムコード一覧!$D$9,IF(J74<300/1440,カリキュラムコード一覧!$D$10,カリキュラムコード一覧!$D$11)))))))))))","v":""},null,null,null,null,null,null,"※左記の単位数とCC数を超えて申請することはできません。",null,"　"]
[null,"CC",null,null,null,null,null,null,"単位数"]
["　　　　CC/単位：１つめ","CCを選択してください。",null,null,null,null,null,null,"単位数を選択してください。","⇐選択してください。"]
["　　　　CC/単位：２つめ","CCを選択してください。",null,null,null,null,null,null,"単位数を選択してください。","⇐選択してください。"]
["　　　　CC/単位：３つめ","CCを選択してください。",null,null,null,null,null,null,"単位数を選択してください。","⇐選択してください。"]
["　　　　CC/単位：４つめ","CCを選択してください。",null,null,null,null,null,null,"単位数を選択してください。","⇐選択してください。"]
["CC：５つめ　　　　　　　　","CCをプルダウンして下記より選択してください。",null,null,null,null,null,null,"単位数をプルダウンして下記より選択してください。","⇐選択してください。"]
["CC：６つめ　　　　　　　　","CCをプルダウンして下記より選択してください。",null,null,null,null,null,null,"単位数をプルダウンして下記より選択してください。","⇐選択してください。"]
["CC：７つめ　　　　　　　　","CCをプルダウンして下記より選択してください。",null,null,null,null,null,null,"単位数をプルダウンして下記より選択してください。","⇐選択してください。"]
["CC：８つめ　　　　　　　　","CCをプルダウンして下記より選択してください。",null,null,null,null,null,null,"単位数をプルダウンして下記より選択してください。","⇐選択してください。"]
["CC：９つめ　　　　　　　　","CCをプルダウンして下記より選択してください。",null,null,null,null,null,null,"単位数をプルダウンして下記より選択してください。","⇐選択してください。"]
["CC：１０つめ　　　　　　　　","CCをプルダウンして下記より選択してください。",null,null,null,null,null,null,"単位数をプルダウンして下記より選択してください。","⇐選択してください。"]
[]
["演題名（テーマ）*",null,null,null,null,null,null,null,null,"⇐入力してください。"]
[null,"例:感染症に対する対策について（未定の場合は仮題をご記入ください。「未定」では受付いたしません。）"]
["演題に関する補足説明",null,null,null,null,null,null,null,null,"⇐必要があれば入力してください。"]
[]
["講師所属(肩書き)*",null,null,null,null,null,null,null,null,"⇐入力してください。"]
[null,"例:医師会大学附属病院病院長、医師会大学整形外科教授"]
["講師名*",null,null,null,null,null,null,null,null,"⇐入力してください。"]
[null,"例:生涯太郎　（※先生の入力は不要、姓と名の間は空白を入れず詰めて入力してください。）"]
["演題②"]
[null,null,null,{"$f":"B100&C100&D100","v":"hh：mm"},null,null,null,{"$f":"F100&G100&H100","v":"hh：mm"},null,{"$f":"IF(ISERROR(H99-D99), \"\", ROUNDUP(H99-D99,5))","v":""}]
["演題開催時間*","hh","：","mm","～","hh","：","mm",null,"⇐選択してください。"]
["カリキュラムコード（CC）*/単位*","基本的には、１時間１単位１カリキュラムコード（CC）です。\n（ただし、講習会等の構成の自由度を保つために、最小単位は30分0.5単位、１カリキュラムコードといたします。）"]
[null,{"$f":"IF(J99=\"\",\"\",IF(J99<30/1440,0,IF(J99<60/1440,カリキュラムコード一覧!$D$2,IF(申込書!J99<90/1440,カリキュラムコード一覧!$D$3,IF(申込書!J99<120/1440,カリキュラムコード一覧!$D$4,IF(J99<150/1440,カリキュラムコード一覧!$D$5,IF(J99<180/1440,カリキュラムコード一覧!$D$6,IF(J99<210/1440,カリキュラムコード一覧!$D$7,IF(J99<240/1440,カリキュラムコード一覧!$D$8,IF(J99<270/1440,カリキュラムコード一覧!$D$9,IF(J99<300/1440,カリキュラムコード一覧!$D$10,カリキュラムコード一覧!$D$11)))))))))))","v":""},null,null,null,null,null,null,"※左記の単位数とCC数を超えて申請することはできません。",null,"　"]
[null,"CC",null,null,null,null,null,null,"単位数"]
["　　　　CC/単位：１つめ","CCを選択してください。",null,null,null,null,null,null,"単位数を選択してください。","⇐選択してください。"]
["　　　　CC/単位：２つめ","CCを選択してください。",null,null,null,null,null,null,"単位数を選択してください。","⇐選択してください。"]
["　　　　CC/単位：３つめ","CCを選択してください。",null,null,null,null,null,null,"単位数を選択してください。","⇐選択してください。"]
["　　　　CC/単位：４つめ","CCを選択してください。",null,null,null,null,null,null,"単位数を選択してください。","⇐選択してください。"]
["CC：５つめ　　　　　　　　","CCをプルダウンして下記より選択してください。",null,null,null,null,null,null,"単位数をプルダウンして下記より選択してください。","⇐選択してください。"]
["CC：６つめ　　　　　　　　","CCをプルダウンして下記より選択してください。",null,null,null,null,null,null,"単位数をプルダウンして下記より選択してください。","⇐選択してください。"]
["CC：７つめ　　　　　　　　","CCをプルダウンして下記より選択してください。",null,null,null,null,null,null,"単位数をプルダウンして下記より選択してください。","⇐選択してください。"]
["CC：８つめ　　　　　　　　","CCをプルダウンして下記より選択してください。",null,null,null,null,null,null,"単位数をプルダウンして下記より選択してください。","⇐選択してください。"]
["CC：９つめ　　　　　　　　","CCをプルダウンして下記より選択してください。",null,null,null,null,null,null,"単位数をプルダウンして下記より選択してください。","⇐選択してください。"]
["CC：１０つめ　　　　　　　　","CCをプルダウンして下記より選択してください。",null,null,null,null,null,null,"単位数をプルダウンして下記より選択してください。","⇐選択してください。"]
[]
["演題名（テーマ）*",null,null,null,null,null,null,null,null,"⇐入力してください。"]
[null,"例:感染症に対する対策について（未定の場合は仮題をご記入ください。「未定」では受付いたしません。）"]
["演題に関する補足説明",null,null,null,null,null,null,null,null,"⇐必要があれば入力してください。"]
[]
["講師所属(肩書き)*",null,null,null,null,null,null,null,null,"⇐入力してください。"]
[null,"例:医師会大学附属病院病院長、医師会大学整形外科教授"]
["講師名*",null,null,null,null,null,null,null,null,"⇐入力してください。"]
[null,"例:生涯太郎　（※先生の入力は不要、姓と名の間は空白を入れず詰めて入力してください。）"]
["演題③"]
[null,null,null,{"$f":"B125&C125&D125","v":"hh：mm"},null,null,null,{"$f":"F125&G125&H125","v":"hh：mm"},null,{"$f":"IF(ISERROR(H124-D124), \"\", ROUNDUP(H124-D124,5))","v":""}]
["演題開催時間*","hh","：","mm","～","hh","：","mm",null,"⇐選択してください。"]
["カリキュラムコード（CC）*/単位*","基本的には、１時間１単位１カリキュラムコード（CC）です。\n（ただし、講習会等の構成の自由度を保つために、最小単位は30分0.5単位、１カリキュラムコードといたします。）"]
[null,{"$f":"IF(J124=\"\",\"\",IF(J124<30/1440,0,IF(J124<60/1440,カリキュラムコード一覧!$D$2,IF(申込書!J124<90/1440,カリキュラムコード一覧!$D$3,IF(申込書!J124<120/1440,カリキュラムコード一覧!$D$4,IF(J124<150/1440,カリキュラムコード一覧!$D$5,IF(J124<180/1440,カリキュラムコード一覧!$D$6,IF(J124<210/1440,カリキュラムコード一覧!$D$7,IF(J124<240/1440,カリキュラムコード一覧!$D$8,IF(J124<270/1440,カリキュラムコード一覧!$D$9,IF(J124<300/1440,カリキュラムコード一覧!$D$10,カリキュラムコード一覧!$D$11)))))))))))","v":""},null,null,null,null,null,null,"※左記の単位数とCC数を超えて申請することはできません。",null,"　"]
[null,"CC",null,null,null,null,null,null,"単位数"]
["　　　　CC/単位：１つめ","CCを選択してください。",null,null,null,null,null,null,"単位数を選択してください。","⇐選択してください。"]
["　　　　CC/単位：２つめ","CCを選択してください。",null,null,null,null,null,null,"単位数を選択してください。","⇐選択してください。"]
["　　　　CC/単位：３つめ","CCを選択してください。",null,null,null,null,null,null,"単位数を選択してください。","⇐選択してください。"]
["　　　　CC/単位：４つめ","CCを選択してください。",null,null,null,null,null,null,"単位数を選択してください。","⇐選択してください。"]
["CC：５つめ　　　　　　　　","CCをプルダウンして下記より選択してください。",null,null,null,null,null,null,"単位数をプルダウンして下記より選択してください。","⇐選択してください。"]
["CC：６つめ　　　　　　　　","CCをプルダウンして下記より選択してください。",null,null,null,null,null,null,"単位数をプルダウンして下記より選択してください。","⇐選択してください。"]
["CC：７つめ　　　　　　　　","CCをプルダウンして下記より選択してください。",null,null,null,null,null,null,"単位数をプルダウンして下記より選択してください。","⇐選択してください。"]
["CC：８つめ　　　　　　　　","CCをプルダウンして下記より選択してください。",null,null,null,null,null,null,"単位数をプルダウンして下記より選択してください。","⇐選択してください。"]
["CC：９つめ　　　　　　　　","CCをプルダウンして下記より選択してください。",null,null,null,null,null,null,"単位数をプルダウンして下記より選択してください。","⇐選択してください。"]
["CC：１０つめ　　　　　　　　","CCをプルダウンして下記より選択してください。",null,null,null,null,null,null,"単位数をプルダウンして下記より選択してください。","⇐選択してください。"]
[]
["演題名（テーマ）*",null,null,null,null,null,null,null,null,"⇐入力してください。"]
[null,"例:感染症に対する対策について（未定の場合は仮題をご記入ください。「未定」では受付いたしません。）"]
["演題に関する補足説明",null,null,null,null,null,null,null,null,"⇐必要があれば入力してください。"]
[]
["講師所属(肩書き)*",null,null,null,null,null,null,null,null,"⇐入力してください。"]
[null,"例:医師会大学附属病院病院長、医師会大学整形外科教授"]
["講師名*",null,null,null,null,null,null,null,null,"⇐入力してください。"]
[null,"例:生涯太郎　（※先生の入力は不要、姓と名の間は空白を入れず詰めて入力してください。）"]
["演題④"]
[null,null,null,{"$f":"B150&C150&D150","v":"hh：mm"},null,null,null,{"$f":"F150&G150&H150","v":"hh：mm"},null,{"$f":"IF(ISERROR(H149-D149), \"\", ROUNDUP(H149-D149,5))","v":""}]
["演題開催時間*","hh","：","mm","～","hh","：","mm",null,"⇐選択してください。"]
["カリキュラムコード（CC）*/単位*","基本的には、１時間１単位１カリキュラムコード（CC）です。\n（ただし、講習会等の構成の自由度を保つために、最小単位は30分0.5単位、１カリキュラムコードといたします。）"]
[null,{"$f":"IF(J149=\"\",\"\",IF(J149<30/1440,0,IF(J149<60/1440,カリキュラムコード一覧!$D$2,IF(申込書!J149<90/1440,カリキュラムコード一覧!$D$3,IF(申込書!J149<120/1440,カリキュラムコード一覧!$D$4,IF(J149<150/1440,カリキュラムコード一覧!$D$5,IF(J149<180/1440,カリキュラムコード一覧!$D$6,IF(J149<210/1440,カリキュラムコード一覧!$D$7,IF(J149<240/1440,カリキュラムコード一覧!$D$8,IF(J149<270/1440,カリキュラムコード一覧!$D$9,IF(J149<300/1440,カリキュラムコード一覧!$D$10,カリキュラムコード一覧!$D$11)))))))))))","v":""},null,null,null,null,null,null,"※左記の単位数とCC数を超えて申請することはできません。",null,"　"]
[null,"CC",null,null,null,null,null,null,"単位数"]
["　　　　CC/単位：１つめ","CCを選択してください。",null,null,null,null,null,null,"単位数を選択してください。","⇐選択してください。"]
["　　　　CC/単位：２つめ","CCを選択してください。",null,null,null,null,null,null,"単位数を選択してください。","⇐選択してください。"]
["　　　　CC/単位：３つめ","CCを選択してください。",null,null,null,null,null,null,"単位数を選択してください。","⇐選択してください。"]
["　　　　CC/単位：４つめ","CCを選択してください。",null,null,null,null,null,null,"単位数を選択してください。","⇐選択してください。"]
["CC：５つめ　　　　　　　　","CCをプルダウンして下記より選択してください。",null,null,null,null,null,null,"単位数をプルダウンして下記より選択してください。","⇐選択してください。"]
["CC：６つめ　　　　　　　　","CCをプルダウンして下記より選択してください。",null,null,null,null,null,null,"単位数をプルダウンして下記より選択してください。","⇐選択してください。"]
["CC：７つめ　　　　　　　　","CCをプルダウンして下記より選択してください。",null,null,null,null,null,null,"単位数をプルダウンして下記より選択してください。","⇐選択してください。"]
["CC：８つめ　　　　　　　　","CCをプルダウンして下記より選択してください。",null,null,null,null,null,null,"単位数をプルダウンして下記より選択してください。","⇐選択してください。"]
["CC：９つめ　　　　　　　　","CCをプルダウンして下記より選択してください。",null,null,null,null,null,null,"単位数をプルダウンして下記より選択してください。","⇐選択してください。"]
["CC：１０つめ　　　　　　　　","CCをプルダウンして下記より選択してください。",null,null,null,null,null,null,"単位数をプルダウンして下記より選択してください。","⇐選択してください。"]
[]
["演題名（テーマ）*",null,null,null,null,null,null,null,null,"⇐入力してください。"]
[null,"例:感染症に対する対策について（未定の場合は仮題をご記入ください。「未定」では受付いたしません。）"]
["演題に関する補足説明",null,null,null,null,null,null,null,null,"⇐必要があれば入力してください。"]
[]
["講師所属(肩書き)*",null,null,null,null,null,null,null,null,"⇐入力してください。"]
[null,"例:医師会大学附属病院病院長、医師会大学整形外科教授"]
["講師名*",null,null,null,null,null,null,null,null,"⇐入力してください。"]
[null,"例:生涯太郎　（※先生の入力は不要、姓と名の間は空白を入れず詰めて入力してください。）"]
["演題⑤"]
[null,null,null,{"$f":"B175&C175&D175","v":"hh：mm"},null,null,null,{"$f":"F175&G175&H175","v":"hh：mm"},null,{"$f":"IF(ISERROR(H174-D174), \"\", ROUNDUP(H174-D174,5))","v":""}]
["演題開催時間*","hh","：","mm","～","hh","：","mm",null,"⇐選択してください。"]
["カリキュラムコード（CC）*/単位*","基本的には、１時間１単位１カリキュラムコード（CC）です。\n（ただし、講習会等の構成の自由度を保つために、最小単位は30分0.5単位、１カリキュラムコードといたします。）"]
[null,{"$f":"IF(J174=\"\",\"\",IF(J174<30/1440,0,IF(J174<60/1440,カリキュラムコード一覧!$D$2,IF(申込書!J174<90/1440,カリキュラムコード一覧!$D$3,IF(申込書!J174<120/1440,カリキュラムコード一覧!$D$4,IF(J174<150/1440,カリキュラムコード一覧!$D$5,IF(J174<180/1440,カリキュラムコード一覧!$D$6,IF(J174<210/1440,カリキュラムコード一覧!$D$7,IF(J174<240/1440,カリキュラムコード一覧!$D$8,IF(J174<270/1440,カリキュラムコード一覧!$D$9,IF(J174<300/1440,カリキュラムコード一覧!$D$10,カリキュラムコード一覧!$D$11)))))))))))","v":""},null,null,null,null,null,null,"※左記の単位数とCC数を超えて申請することはできません。",null,"　"]
[null,"CC",null,null,null,null,null,null,"単位数"]
["　　　　CC/単位：１つめ","CCを選択してください。",null,null,null,null,null,null,"単位数を選択してください。","⇐選択してください。"]
["　　　　CC/単位：２つめ","CCを選択してください。",null,null,null,null,null,null,"単位数を選択してください。","⇐選択してください。"]
["　　　　CC/単位：３つめ","CCを選択してください。",null,null,null,null,null,null,"単位数を選択してください。","⇐選択してください。"]
["　　　　CC/単位：４つめ","CCを選択してください。",null,null,null,null,null,null,"単位数を選択してください。","⇐選択してください。"]
["CC：５つめ　　　　　　　　","CCをプルダウンして下記より選択してください。",null,null,null,null,null,null,"単位数をプルダウンして下記より選択してください。","⇐選択してください。"]
["CC：６つめ　　　　　　　　","CCをプルダウンして下記より選択してください。",null,null,null,null,null,null,"単位数をプルダウンして下記より選択してください。","⇐選択してください。"]
["CC：７つめ　　　　　　　　","CCをプルダウンして下記より選択してください。",null,null,null,null,null,null,"単位数をプルダウンして下記より選択してください。","⇐選択してください。"]
["CC：８つめ　　　　　　　　","CCをプルダウンして下記より選択してください。",null,null,null,null,null,null,"単位数をプルダウンして下記より選択してください。","⇐選択してください。"]
["CC：９つめ　　　　　　　　","CCをプルダウンして下記より選択してください。",null,null,null,null,null,null,"単位数をプルダウンして下記より選択してください。","⇐選択してください。"]
["CC：１０つめ　　　　　　　　","CCをプルダウンして下記より選択してください。",null,null,null,null,null,null,"単位数をプルダウンして下記より選択してください。","⇐選択してください。"]
[]
["演題名（テーマ）*",null,null,null,null,null,null,null,null,"⇐入力してください。"]
[null,"例:感染症に対する対策について（未定の場合は仮題をご記入ください。「未定」では受付いたしません。）"]
["演題に関する補足説明",null,null,null,null,null,null,null,null,"⇐必要があれば入力してください。"]
[]
["講師所属(肩書き)*",null,null,null,null,null,null,null,null,"⇐入力してください。"]
[null,"例:医師会大学附属病院病院長、医師会大学整形外科教授"]
["講師名*",null,null,null,null,null,null,null,null,"⇐入力してください。"]
[null,"例:生涯太郎　（※先生の入力は不要、姓と名の間は空白を入れず詰めて入力してください。）"]
["演題⑥"]
[null,null,null,{"$f":"B200&C200&D200","v":"hh：mm"},null,null,null,{"$f":"F200&G200&H200","v":"hh：mm"},null,{"$f":"IF(ISERROR(H199-D199), \"\", ROUNDUP(H199-D199,5))","v":""}]
["演題開催時間*","hh","：","mm","～","hh","：","mm",null,"⇐選択してください。"]
["カリキュラムコード（CC）*/単位*","基本的には、１時間１単位１カリキュラムコード（CC）です。\n（ただし、講習会等の構成の自由度を保つために、最小単位は30分0.5単位、１カリキュラムコードといたします。）"]
[null,{"$f":"IF(J199=\"\",\"\",IF(J199<30/1440,0,IF(J199<60/1440,カリキュラムコード一覧!$D$2,IF(申込書!J199<90/1440,カリキュラムコード一覧!$D$3,IF(申込書!J199<120/1440,カリキュラムコード一覧!$D$4,IF(J199<150/1440,カリキュラムコード一覧!$D$5,IF(J199<180/1440,カリキュラムコード一覧!$D$6,IF(J199<210/1440,カリキュラムコード一覧!$D$7,IF(J199<240/1440,カリキュラムコード一覧!$D$8,IF(J199<270/1440,カリキュラムコード一覧!$D$9,IF(J199<300/1440,カリキュラムコード一覧!$D$10,カリキュラムコード一覧!$D$11)))))))))))","v":""},null,null,null,null,null,null,"※左記の単位数とCC数を超えて申請することはできません。",null,"　"]
[null,"CC",null,null,null,null,null,null,"単位数"]
["　　　　CC/単位：１つめ","CCを選択してください。",null,null,null,null,null,null,"単位数を選択してください。","⇐選択してください。"]
["　　　　CC/単位：２つめ","CCを選択してください。",null,null,null,null,null,null,"単位数を選択してください。","⇐選択してください。"]
["　　　　CC/単位：３つめ","CCを選択してください。",null,null,null,null,null,null,"単位数を選択してください。","⇐選択してください。"]
["　　　　CC/単位：４つめ","CCを選択してください。",null,null,null,null,null,null,"単位数を選択してください。","⇐選択してください。"]
["CC：５つめ　　　　　　　　","CCをプルダウンして下記より選択してください。",null,null,null,null,null,null,"単位数をプルダウンして下記より選択してください。","⇐選択してください。"]
["CC：６つめ　　　　　　　　","CCをプルダウンして下記より選択してください。",null,null,null,null,null,null,"単位数をプルダウンして下記より選択してください。","⇐選択してください。"]
["CC：７つめ　　　　　　　　","CCをプルダウンして下記より選択してください。",null,null,null,null,null,null,"単位数をプルダウンして下記より選択してください。","⇐選択してください。"]
["CC：８つめ　　　　　　　　","CCをプルダウンして下記より選択してください。",null,null,null,null,null,null,"単位数をプルダウンして下記より選択してください。","⇐選択してください。"]
["CC：９つめ　　　　　　　　","CCをプルダウンして下記より選択してください。",null,null,null,null,null,null,"単位数をプルダウンして下記より選択してください。","⇐選択してください。"]
["CC：１０つめ　　　　　　　　","CCをプルダウンして下記より選択してください。",null,null,null,null,null,null,"単位数をプルダウンして下記より選択してください。","⇐選択してください。"]
[]
["演題名（テーマ）*",null,null,null,null,null,null,null,null,"⇐入力してください。"]
[null,"例:感染症に対する対策について（未定の場合は仮題をご記入ください。「未定」では受付いたしません。）"]
["演題に関する補足説明",null,null,null,null,null,null,null,null,"⇐必要があれば入力してください。"]
[]
["講師所属(肩書き)*",null,null,null,null,null,null,null,null,"⇐入力してください。"]
[null,"例:医師会大学附属病院病院長、医師会大学整形外科教授"]
["講師名*",null,null,null,null,null,null,null,null,"⇐入力してください。"]
[null,"例:生涯太郎　（※先生の入力は不要、姓と名の間は空白を入れず詰めて入力してください。）"]
["演題⑦"]
[null,null,null,{"$f":"B225&C225&D225","v":"hh：mm"},null,null,null,{"$f":"F225&G225&H225","v":"hh：mm"},null,{"$f":"IF(ISERROR(H224-D224), \"\", ROUNDUP(H224-D224,5))","v":""}]
["演題開催時間*","hh","：","mm","～","hh","：","mm",null,"⇐選択してください。"]
["カリキュラムコード（CC）*/単位*","基本的には、１時間１単位１カリキュラムコード（CC）です。\n（ただし、講習会等の構成の自由度を保つために、最小単位は30分0.5単位、１カリキュラムコードといたします。）"]
[null,{"$f":"IF(J224=\"\",\"\",IF(J224<30/1440,0,IF(J224<60/1440,カリキュラムコード一覧!$D$2,IF(申込書!J224<90/1440,カリキュラムコード一覧!$D$3,IF(申込書!J224<120/1440,カリキュラムコード一覧!$D$4,IF(J224<150/1440,カリキュラムコード一覧!$D$5,IF(J224<180/1440,カリキュラムコード一覧!$D$6,IF(J224<210/1440,カリキュラムコード一覧!$D$7,IF(J224<240/1440,カリキュラムコード一覧!$D$8,IF(J224<270/1440,カリキュラムコード一覧!$D$9,IF(J224<300/1440,カリキュラムコード一覧!$D$10,カリキュラムコード一覧!$D$11)))))))))))","v":""},null,null,null,null,null,null,"※左記の単位数とCC数を超えて申請することはできません。",null,"　"]
[null,"CC",null,null,null,null,null,null,"単位数"]
["　　　　CC/単位：１つめ","CCを選択してください。",null,null,null,null,null,null,"単位数を選択してください。","⇐選択してください。"]
["　　　　CC/単位：２つめ","CCを選択してください。",null,null,null,null,null,null,"単位数を選択してください。","⇐選択してください。"]
["　　　　CC/単位：３つめ","CCを選択してください。",null,null,null,null,null,null,"単位数を選択してください。","⇐選択してください。"]
["　　　　CC/単位：４つめ","CCを選択してください。",null,null,null,null,null,null,"単位数を選択してください。","⇐選択してください。"]
["CC：５つめ　　　　　　　　","CCをプルダウンして下記より選択してください。",null,null,null,null,null,null,"単位数をプルダウンして下記より選択してください。","⇐選択してください。"]
["CC：６つめ　　　　　　　　","CCをプルダウンして下記より選択してください。",null,null,null,null,null,null,"単位数をプルダウンして下記より選択してください。","⇐選択してください。"]
["CC：７つめ　　　　　　　　","CCをプルダウンして下記より選択してください。",null,null,null,null,null,null,"単位数をプルダウンして下記より選択してください。","⇐選択してください。"]
["CC：８つめ　　　　　　　　","CCをプルダウンして下記より選択してください。",null,null,null,null,null,null,"単位数をプルダウンして下記より選択してください。","⇐選択してください。"]
["CC：９つめ　　　　　　　　","CCをプルダウンして下記より選択してください。",null,null,null,null,null,null,"単位数をプルダウンして下記より選択してください。","⇐選択してください。"]
["CC：１０つめ　　　　　　　　","CCをプルダウンして下記より選択してください。",null,null,null,null,null,null,"単位数をプルダウンして下記より選択してください。","⇐選択してください。"]
[]
["演題名（テーマ）*",null,null,null,null,null,null,null,null,"⇐入力してください。"]
[null,"例:感染症に対する対策について（未定の場合は仮題をご記入ください。「未定」では受付いたしません。）"]
["演題に関する補足説明",null,null,null,null,null,null,null,null,"⇐必要があれば入力してください。"]
[]
["講師所属(肩書き)*",null,null,null,null,null,null,null,null,"⇐入力してください。"]
[null,"例:医師会大学附属病院病院長、医師会大学整形外科教授"]
["講師名*",null,null,null,null,null,null,null,null,"⇐入力してください。"]
[null,"例:生涯太郎　（※先生の入力は不要、姓と名の間は空白を入れず詰めて入力してください。）"]
["演題⑧"]
[null,null,null,{"$f":"B250&C250&D250","v":"hh：mm"},null,null,null,{"$f":"F250&G250&H250","v":"hh：mm"},null,{"$f":"IF(ISERROR(H249-D249), \"\", ROUNDUP(H249-D249,5))","v":""}]
["演題開催時間*","hh","：","mm","～","hh","：","mm",null,"⇐選択してください。"]
["カリキュラムコード（CC）*/単位*","基本的には、１時間１単位１カリキュラムコード（CC）です。\n（ただし、講習会等の構成の自由度を保つために、最小単位は30分0.5単位、１カリキュラムコードといたします。）"]
[null,{"$f":"IF(J249=\"\",\"\",IF(J249<30/1440,0,IF(J249<60/1440,カリキュラムコード一覧!$D$2,IF(申込書!J249<90/1440,カリキュラムコード一覧!$D$3,IF(申込書!J249<120/1440,カリキュラムコード一覧!$D$4,IF(J249<150/1440,カリキュラムコード一覧!$D$5,IF(J249<180/1440,カリキュラムコード一覧!$D$6,IF(J249<210/1440,カリキュラムコード一覧!$D$7,IF(J249<240/1440,カリキュラムコード一覧!$D$8,IF(J249<270/1440,カリキュラムコード一覧!$D$9,IF(J249<300/1440,カリキュラムコード一覧!$D$10,カリキュラムコード一覧!$D$11)))))))))))","v":""},null,null,null,null,null,null,"※左記の単位数とCC数を超えて申請することはできません。",null,"　"]
[null,"CC",null,null,null,null,null,null,"単位数"]
["　　　　CC/単位：１つめ","CCを選択してください。",null,null,null,null,null,null,"単位数を選択してください。","⇐選択してください。"]
["　　　　CC/単位：２つめ","CCを選択してください。",null,null,null,null,null,null,"単位数を選択してください。","⇐選択してください。"]
["　　　　CC/単位：３つめ","CCを選択してください。",null,null,null,null,null,null,"単位数を選択してください。","⇐選択してください。"]
["　　　　CC/単位：４つめ","CCを選択してください。",null,null,null,null,null,null,"単位数を選択してください。","⇐選択してください。"]
["CC：５つめ　　　　　　　　","CCをプルダウンして下記より選択してください。",null,null,null,null,null,null,"単位数をプルダウンして下記より選択してください。","⇐選択してください。"]
["CC：６つめ　　　　　　　　","CCをプルダウンして下記より選択してください。",null,null,null,null,null,null,"単位数をプルダウンして下記より選択してください。","⇐選択してください。"]
["CC：７つめ　　　　　　　　","CCをプルダウンして下記より選択してください。",null,null,null,null,null,null,"単位数をプルダウンして下記より選択してください。","⇐選択してください。"]
["CC：８つめ　　　　　　　　","CCをプルダウンして下記より選択してください。",null,null,null,null,null,null,"単位数をプルダウンして下記より選択してください。","⇐選択してください。"]
["CC：９つめ　　　　　　　　","CCをプルダウンして下記より選択してください。",null,null,null,null,null,null,"単位数をプルダウンして下記より選択してください。","⇐選択してください。"]
["CC：１０つめ　　　　　　　　","CCをプルダウンして下記より選択してください。",null,null,null,null,null,null,"単位数をプルダウンして下記より選択してください。","⇐選択してください。"]
[]
["演題名（テーマ）*",null,null,null,null,null,null,null,null,"⇐入力してください。"]
[null,"例:感染症に対する対策について（未定の場合は仮題をご記入ください。「未定」では受付いたしません。）"]
["演題に関する補足説明",null,null,null,null,null,null,null,null,"⇐必要があれば入力してください。"]
[]
["講師所属(肩書き)*",null,null,null,null,null,null,null,null,"⇐入力してください。"]
[null,"例:医師会大学附属病院病院長、医師会大学整形外科教授"]
["講師名*",null,null,null,null,null,null,null,null,"⇐入力してください。"]
[null,"例:生涯太郎　（※先生の入力は不要、姓と名の間は空白を入れず詰めて入力してください。）"]
["演題⑨"]
[null,null,null,{"$f":"B275&C275&D275","v":"hh：mm"},null,null,null,{"$f":"F275&G275&H275","v":"hh：mm"},null,{"$f":"IF(ISERROR(H274-D274), \"\", ROUNDUP(H274-D274,5))","v":""}]
["演題開催時間*","hh","：","mm","～","hh","：","mm",null,"⇐選択してください。"]
["カリキュラムコード（CC）*/単位*","基本的には、１時間１単位１カリキュラムコード（CC）です。\n（ただし、講習会等の構成の自由度を保つために、最小単位は30分0.5単位、１カリキュラムコードといたします。）"]
[null,{"$f":"IF(J274=\"\",\"\",IF(J274<30/1440,0,IF(J274<60/1440,カリキュラムコード一覧!$D$2,IF(申込書!J274<90/1440,カリキュラムコード一覧!$D$3,IF(申込書!J274<120/1440,カリキュラムコード一覧!$D$4,IF(J274<150/1440,カリキュラムコード一覧!$D$5,IF(J274<180/1440,カリキュラムコード一覧!$D$6,IF(J274<210/1440,カリキュラムコード一覧!$D$7,IF(J274<240/1440,カリキュラムコード一覧!$D$8,IF(J274<270/1440,カリキュラムコード一覧!$D$9,IF(J274<300/1440,カリキュラムコード一覧!$D$10,カリキュラムコード一覧!$D$11)))))))))))","v":""},null,null,null,null,null,null,"※左記の単位数とCC数を超えて申請することはできません。",null,"　"]
[null,"CC",null,null,null,null,null,null,"単位数"]
["　　　　CC/単位：１つめ","CCを選択してください。",null,null,null,null,null,null,"単位数を選択してください。","⇐選択してください。"]
["　　　　CC/単位：２つめ","CCを選択してください。",null,null,null,null,null,null,"単位数を選択してください。","⇐選択してください。"]
["　　　　CC/単位：３つめ","CCを選択してください。",null,null,null,null,null,null,"単位数を選択してください。","⇐選択してください。"]
["　　　　CC/単位：４つめ","CCを選択してください。",null,null,null,null,null,null,"単位数を選択してください。","⇐選択してください。"]
["CC：５つめ　　　　　　　　","CCをプルダウンして下記より選択してください。",null,null,null,null,null,null,"単位数をプルダウンして下記より選択してください。","⇐選択してください。"]
["CC：６つめ　　　　　　　　","CCをプルダウンして下記より選択してください。",null,null,null,null,null,null,"単位数をプルダウンして下記より選択してください。","⇐選択してください。"]
["CC：７つめ　　　　　　　　","CCをプルダウンして下記より選択してください。",null,null,null,null,null,null,"単位数をプルダウンして下記より選択してください。","⇐選択してください。"]
["CC：８つめ　　　　　　　　","CCをプルダウンして下記より選択してください。",null,null,null,null,null,null,"単位数をプルダウンして下記より選択してください。","⇐選択してください。"]
["CC：９つめ　　　　　　　　","CCをプルダウンして下記より選択してください。",null,null,null,null,null,null,"単位数をプルダウンして下記より選択してください。","⇐選択してください。"]
["CC：１０つめ　　　　　　　　","CCをプルダウンして下記より選択してください。",null,null,null,null,null,null,"単位数をプルダウンして下記より選択してください。","⇐選択してください。"]
[]
["演題名（テーマ）*",null,null,null,null,null,null,null,null,"⇐入力してください。"]
[null,"例:感染症に対する対策について（未定の場合は仮題をご記入ください。「未定」では受付いたしません。）"]
["演題に関する補足説明",null,null,null,null,null,null,null,null,"⇐必要があれば入力してください。"]
[]
["講師所属(肩書き)*",null,null,null,null,null,null,null,null,"⇐入力してください。"]
[null,"例:医師会大学附属病院病院長、医師会大学整形外科教授"]
["講師名*",null,null,null,null,null,null,null,null,"⇐入力してください。"]
[null,"例:生涯太郎　（※先生の入力は不要、姓と名の間は空白を入れず詰めて入力してください。）"]
[" "]

{"sheet":"カリキュラムコード一覧","index":1,"n_rows":85,"n_cols":19,"rows_kept":85,"cut":false,"hidden":true,"merged":[]}
[null,"CCを選択してください。","単位数を選択してください。",null,"主催者分類を選択してください。","共催者の有無を選択してください。","製薬会社共催の有無を選択してください。","講習会等の形式を選択してください。","対象者を選択してください。","hh","mm","参加費・受講料を選択してください。","事前申込要・不要を選択してください。","申請者の立場を選択してください。","COI開示有無を選択してください。","受付管理を選択してください。","申請演題数を選択してください。","開催地医師会を選択してください。","担当者所属を選択してください。"]
[null,"1:医師のプロフェッショナリズム","0.5単位","0.5単位（CCを最大1つまで選べます）","企業　（名称を入力してください↓）","無","無 ","座学 ","医師のみ     ","08","00","無料    ","不要   ","主催者  ","有","開始受付のみ   ",1,"水戸市医師会","事務局"]
[null,"2:医療倫理：臨床倫理","1単位","1単位　（CCを最大2つまで選べます）","医療機関　（名称を入力してください↓）","有　水戸市医師会","有　（名称を入力してください↓）","その他  （入力してください→）","その他  （入力してください→）","09","05","有料　（参加費・受講料を入力してください→）","必要  （申込締切日を入力してください→）","共催者","無","終了受付のみ",2,"日立市医師会","生涯教育担当"]
[null,"3:医療倫理：研究倫理と生命倫理 ","1.5単位","1.5単位（CCを最大3つまで選べます）","団体　（名称を入力してください↓）","有　日立市医師会",null,null,null,10,10,null,null,"その他",null,"開始＋終了受付  （↓下記の欄に入力してください　　分間）",3,"土浦市医師会","会長"]
[null,"4:医師ー患者関係とコミュニケーション  ","2単位","2単位　（CCを最大4つまで選べます）","水戸市医師会","有　土浦市医師会",null,null,null,11,15,null,null,null,null,null,4,"古河市医師会","役員"]
[null,"5:心理社会的アプローチ  ","2.5単位","2.5単位（CCを最大5つまで選べます）","日立市医師会","有　古河市医師会",null,null,null,12,20,null,null,null,null,null,5,"石岡市医師会","会員"]
[null,"6:医療制度と法律  ","3単位","3単位　（CCを最大6つまで選べます）","土浦市医師会","有　石岡市医師会",null,null,null,13,25,null,null,null,null,null,6,"結城市医師会"]
[null,"7:医療の質と安全  ","3.5単位","3.5単位（CCを最大7つまで選べます）","古河市医師会","有　結城市医師会",null,null,null,14,30,null,null,null,null,null,7,"常陸太田市医師会"]
[null,"8:感染対策  ","4単位","4単位　（CCを最大8つまで選べます）","石岡市医師会","有　常陸太田市医師会",null,null,null,15,35,null,null,null,null,null,8,"取手市医師会"]
[null,"9:医療情報 ","4.5単位","4.5単位（CCを最大9つまで選べます）","結城市医師会","有　取手市医師会",null,null,null,16,40,null,null,null,null,null,9,"ひたちなか市医師会"]
[null,"10:チーム医療  ","5単位","5単位　（CCを最大10つまで選べます）","常陸太田市医師会","有　ひたちなか市医師会",null,null,null,17,45,null,null,null,null,null,10,"茨城県県央医師会"]
[null,"11:予防と保健",null,null,"取手市医師会","有　茨城県県央医師会",null,null,null,18,50,null,null,null,null,null,null,"笠間市医師会"]
[null,"12:地域医療  ",null,null,"ひたちなか市医師会","有　笠間市医師会",null,null,null,19,55,null,null,null,null,null,null,"那珂医師会"]
[null,"13:医療と介護および福祉の連携  ",null,null,"茨城県県央医師会","有　那珂医師会",null,null,null,20,null,null,null,null,null,null,null,"茨城県水郡医師会"]
[null,"14:災害医療  ",null,null,"笠間市医師会","有　茨城県水郡医師会",null,null,null,21,null,null,null,null,null,null,null,"多賀医師会"]
[null,"15:臨床問題解決のプロセス  ",null,null,"那珂医師会","有　多賀医師会",null,null,null,22,null,null,null,null,null,null,null,"鹿島医師会"]
[null,"16:ショック  ",null,null,"茨城県水郡医師会","有　鹿島医師会",null,null,null,null,null,null,null,null,null,null,null,"水郷医師会"]
[null,"17:急性中毒  ",null,null,"多賀医師会","有　水郷医師会",null,null,null,null,null,null,null,null,null,null,null,"稲敷医師会"]
[null,"18:全身倦怠感  ",null,null,"鹿島医師会","有　稲敷医師会",null,null,null,null,null,null,null,null,null,null,null,"つくば市医師会"]
[null,"19:身体機能の低下  ",null,null,"水郷医師会","有　つくば市医師会",null,null,null,null,null,null,null,null,null,null,null,"真壁医師会"]
[null,"20:不眠  ",null,null,"稲敷医師会","有　真壁医師会",null,null,null,null,null,null,null,null,null,null,null,"茨城県きぬ医師会"]
[null,"21:食欲不振  ",null,null,"つくば市医師会","有　茨城県きぬ医師会",null,null,null,null,null,null,null,null,null,null,null,"猿島郡医師会"]
[null,"22:体重減少・るい痩  ",null,null,"真壁医師会","有　猿島郡医師会",null,null,null,null,null,null,null,null,null,null,null,"県庁医師会"]
[null,"23:体重増加・肥満  ",null,null,"茨城県きぬ医師会","有　県庁医師会",null,null,null,null,null,null,null,null,null,null,null,"筑波大学医師会"]
[null,"24:浮腫  ",null,null,"猿島郡医師会","有　筑波大学医師会",null,null,null,null,null,null,null,null,null,null,null,"東京医科大学茨城医療センター医師会 "]
[null,"25:リンパ節腫脹  ",null,null,"県庁医師会","有　東京医科大学茨城医療センター医師会 ",null,null,null,null,null,null,null,null,null,null,null,"龍ケ崎市医師会"]
[null,"26:発疹  ",null,null,"筑波大学医師会","有　龍ケ崎市医師会",null,null,null,null,null,null,null,null,null,null,null,"牛久市医師会"]
[null,"27:黄疸",null,null,"東京医科大学茨城医療センター医師会 ","有　牛久市医師会"]
[null,"28:発熱  ",null,null,"龍ケ崎市医師会","有　その他　（名称を入力してください↓）"]
[null,"29:認知能の障害  ",null,null,"牛久市医師会"]
[null,"30:頭痛  ",null,null,"茨城県医師会"]
[null,"31:めまい  "]
[null,"32:意識障害  "]
[null,"33:失神  "]
[null,"34:言語障害  "]
[null,"35:けいれん発作  "]
[null,"36:視力障害、視野狭窄  "]
[null,"37:目の充血  "]
[null,"38:聴覚障害  "]
[null,"39:鼻漏・鼻閉  "]
[null,"40:鼻出血  "]
[null,"41:嗄声  "]
[null,"42:胸痛  "]
[null,"43:動悸  "]
[null,"44:心肺停止  "]
[null,"45:呼吸困難  "]
[null,"46:咳 ・痰  "]
[null,"47:誤嚥  "]
[null,"48:誤飲  "]
[null,"49:嚥下困難  "]
[null,"50:吐血・下血  "]
[null,"51:嘔気・嘔吐  "]
[null,"52:胸やけ  "]
[null,"53:腹痛  "]
[null,"54:便通異常（下痢、便秘）  "]
[null,"55:肛門・会陰部痛 "]
[null,"56:熱傷  "]
[null,"57:外傷  "]
[null,"58:褥瘡  "]
[null,"59:背部痛  "]
[null,"60:腰痛  "]
[null,"61:関節痛  "]
[null,"62:歩行障害  "]
[null,"63:四肢のしびれ  "]
[null,"64:肉眼的血尿  "]
[null,"65:排尿障害（尿失禁・排尿困難）  "]
[null,"66:乏尿・尿閉  "]
[null,"67:多尿  "]
[null,"68:精神科領域の救急  "]
[null,"69:不安  "]
[null,"70:気分の障害（うつ）  "]
[null,"71:流・早産および満期産  "]
[null,"72:成長・発達の障害  "]
[null,"73:慢性疾患・複合疾患の管理  "]
[null,"74:高血圧症  "]
[null,"75:脂質異常症  "]
[null,"76:糖尿病  "]
[null,"77:骨粗鬆症  "]
[null,"78:脳血管障害後遺症  "]
[null,"79:気管支喘息  "]
[null,"80:在宅医療  "]
[null,"81:終末期のケア  "]
[null,"82:生活習慣  "]
[null,"83:相補・代替医療（漢方医療を含む）  "]
[null,"0:その他"]